[Event "Titled Tuesday Blitz March 15 Late 2022"]
[White "Golubka, Petro"]
[Black "Solon, Nathan"]
[WhiteFideId "14114224"]
[BlackFideId "2017229"]
[WhiteElo "2346"]
[BlackElo "2594"]
[Result "1-0"]
[Round "09"]
[TimeControl "180+1"]
[Date "2022.03.15"]
[WhiteClock "0:00:05"]
[BlackClock "0:00:02"]

1. g3 {[%clk 0:02:56]}  d5 {[%clk 0:02:59]} 2. Bg2 {[%clk 0:02:55]}  e5 {[%clk 0:02:57]} 3. d3 {[%clk 0:02:55]}  c5 {[%clk 0:02:55]} 4. Nf3 {[%clk 0:02:52]}  Nc6 {[%clk 0:02:55]} 5. O-O {[%clk 0:02:53]}  Be7 {[%clk 0:02:55]} 6. c4 {[%clk 0:02:48]}  d4 {[%clk 0:02:54]} 7. b4 {[%clk 0:02:38]}  cxb4 {[%clk 0:02:53]} 8. a3 {[%clk 0:02:38]}  a5 {[%clk 0:02:48]} 9. axb4 {[%clk 0:02:38]}  Bxb4 {[%clk 0:02:49]} 10. Ba3 {[%clk 0:02:36]}  Bd7 {[%clk 0:02:38]} 11. Nbd2 {[%clk 0:02:22]}  Nf6 {[%clk 0:02:37]} 12. Qb3 {[%clk 0:01:56]}  O-O {[%clk 0:02:32]} 13. Bxb4 {[%clk 0:01:56]}  axb4 {[%clk 0:02:31]} 14. Ng5 {[%clk 0:01:52]}  Qe7 {[%clk 0:02:20]} 15. h4 {[%clk 0:01:31]}  h6 {[%clk 0:02:05]} 16. Nge4 {[%clk 0:01:24]}  Ng4 {[%clk 0:02:05]} 17. c5 {[%clk 0:01:22]}  Be6 {[%clk 0:02:02]} 18. Qb2 {[%clk 0:01:21]}  f5 {[%clk 0:01:40]} 19. Nd6 {[%clk 0:01:07]}  e4 {[%clk 0:01:40]} 20. dxe4 {[%clk 0:01:05]}  Rxa1 {[%clk 0:01:37]} 21. Rxa1 {[%clk 0:01:00]}  f4 {[%clk 0:01:38]} 22. Nf3 {[%clk 0:00:56]}  fxg3 {[%clk 0:01:34]} 23. fxg3 {[%clk 0:00:57]}  Qf6 {[%clk 0:01:17]} 24. Nxb7 {[%clk 0:00:51]}  b3 {[%clk 0:01:02]} 25. Nd6 {[%clk 0:00:50]}  d3 {[%clk 0:00:45]} 26. Qxf6 {[%clk 0:00:27]}  Nxf6 {[%clk 0:00:46]} 27. exd3 {[%clk 0:00:27]}  b2 {[%clk 0:00:46]} 28. Rb1 {[%clk 0:00:27]}  Rb8 {[%clk 0:00:46]} 29. Nc4 {[%clk 0:00:26]}  Bxc4 {[%clk 0:00:47]} 30. dxc4 {[%clk 0:00:27]}  Nxe4 {[%clk 0:00:47]} 31. Ne1 {[%clk 0:00:25]}  Nc3 {[%clk 0:00:37]} 32. Bd5+ {[%clk 0:00:20]}  Kf8 {[%clk 0:00:35]} 33. Rxb2 {[%clk 0:00:19]}  Rxb2 {[%clk 0:00:36]} 34. Bxc6 {[%clk 0:00:20]}  Ke7 {[%clk 0:00:22]} 35. Bf3 {[%clk 0:00:17]}  Na4 {[%clk 0:00:20]} 36. Nd3 {[%clk 0:00:16]}  Rd2 {[%clk 0:00:20]} 37. Be4 {[%clk 0:00:16]}  Nc3 {[%clk 0:00:16]} 38. Bh7 {[%clk 0:00:14]}  Kf6 {[%clk 0:00:10]} 39. c6 {[%clk 0:00:11]}  Ke7 {[%clk 0:00:06]} 40. Nf4 {[%clk 0:00:08]}  Kd6 {[%clk 0:00:05]} 41. Nd5 {[%clk 0:00:04]}  Nxd5 {[%clk 0:00:03]} 42. cxd5 {[%clk 0:00:05]}  Rxd5 {[%clk 0:00:03]} 43. Be4 {[%clk 0:00:05]}  Rd2 {[%clk 0:00:02]} 44. Bf3 {[%clk 0:00:05]} 1-0


[Site "https://www.chess.com"]

[Event "Titled Tuesday Blitz March 15 Late 2022"]
[White "Goryachkina, Aleksandra"]
[Black "Kamsky, Gata"]
[WhiteFideId "4147103"]
[BlackFideId "2000024"]
[WhiteElo "2426"]
[BlackElo "2645"]
[Result "0-1"]
[Round "09"]
[TimeControl "180+1"]
[Date "2022.03.15"]
[WhiteClock "0:00:11"]
[BlackClock "0:00:26"]

1. e4 {[%clk 0:02:59]}  Nf6 {[%clk 0:02:52]} 2. e5 {[%clk 0:02:58]}  Nd5 {[%clk 0:02:51]} 3. d4 {[%clk 0:02:59]}  d6 {[%clk 0:02:51]} 4. Nf3 {[%clk 0:02:59]}  g6 {[%clk 0:02:49]} 5. Bc4 {[%clk 0:02:56]}  c6 {[%clk 0:02:49]} 6. O-O {[%clk 0:02:50]}  Bg7 {[%clk 0:02:48]} 7. h3 {[%clk 0:02:47]}  O-O {[%clk 0:02:48]} 8. Nbd2 {[%clk 0:02:36]}  Nd7 {[%clk 0:02:25]} 9. Re1 {[%clk 0:02:34]}  dxe5 {[%clk 0:02:23]} 10. dxe5 {[%clk 0:02:33]}  Nc5 {[%clk 0:02:21]} 11. Nb3 {[%clk 0:02:25]}  Ne6 {[%clk 0:02:08]} 12. c3 {[%clk 0:02:18]}  Nb6 {[%clk 0:02:06]} 13. Bd3 {[%clk 0:02:16]}  c5 {[%clk 0:01:59]} 14. Qe2 {[%clk 0:02:09]}  Qc7 {[%clk 0:01:58]} 15. c4 {[%clk 0:02:04]}  Bd7 {[%clk 0:01:56]} 16. Be3 {[%clk 0:01:39]}  f6 {[%clk 0:01:46]} 17. exf6 {[%clk 0:01:28]}  exf6 {[%clk 0:01:45]} 18. Be4 {[%clk 0:01:27]}  Rfe8 {[%clk 0:01:37]} 19. Bd5 {[%clk 0:01:22]}  Kh8 {[%clk 0:01:31]} 20. Bxe6 {[%clk 0:01:03]}  Bxe6 {[%clk 0:01:28]} 21. Bxc5 {[%clk 0:01:02]}  Nxc4 {[%clk 0:01:21]} 22. Rac1 {[%clk 0:00:57]}  Bf7 {[%clk 0:01:20]} 23. Qc2 {[%clk 0:00:54]}  b6 {[%clk 0:01:17]} 24. Bd4 {[%clk 0:00:53]}  Qf4 {[%clk 0:01:04]} 25. Qc3 {[%clk 0:00:44]}  Kg8 {[%clk 0:00:58]} 26. Rcd1 {[%clk 0:00:27]}  Rac8 {[%clk 0:00:56]} 27. Rxe8+ {[%clk 0:00:26]}  Rxe8 {[%clk 0:00:55]} 28. Nbd2 {[%clk 0:00:25]}  Nd6 {[%clk 0:00:52]} 29. Qc7 {[%clk 0:00:16]}  Rc8 {[%clk 0:00:39]} 30. Qxa7 {[%clk 0:00:15]}  b5 {[%clk 0:00:30]} 31. Be3 {[%clk 0:00:13]}  Qb4 {[%clk 0:00:28]} 32. b3 {[%clk 0:00:13]}  Nf5 {[%clk 0:00:27]} 33. Bf4 {[%clk 0:00:11]}  Qxf4 {[%clk 0:00:26]} 0-1


[Site "https://www.chess.com"]

[Event "Titled Tuesday Blitz March 15 Late 2022"]
[White "Hess, Max"]
[Black "Romero Ruscalleda, Josep"]
[WhiteFideId "24656666"]
[BlackFideId "2231859"]
[WhiteElo "2276"]
[BlackElo "2333"]
[Result "1-0"]
[Round "09"]
[TimeControl "180+1"]
[Date "2022.03.16"]
[WhiteClock "0:02:12"]
[BlackClock "0:01:40"]

1. d4 {[%clk 0:02:56]}  g6 {[%clk 0:03:00]} 2. e3 {[%clk 0:02:56]}  Bg7 {[%clk 0:03:01]} 3. Nf3 {[%clk 0:02:56]}  d6 {[%clk 0:03:01]} 4. Be2 {[%clk 0:02:56]}  Nf6 {[%clk 0:03:00]} 5. O-O {[%clk 0:02:56]}  O-O {[%clk 0:02:59]} 6. c4 {[%clk 0:02:54]}  b6 {[%clk 0:02:59]} 7. Nc3 {[%clk 0:02:52]}  Bb7 {[%clk 0:02:59]} 8. b3 {[%clk 0:02:51]}  Nbd7 {[%clk 0:02:58]} 9. Bb2 {[%clk 0:02:51]}  Ne4 {[%clk 0:02:57]} 10. Nxe4 {[%clk 0:02:48]}  Bxe4 {[%clk 0:02:57]} 11. Nd2 {[%clk 0:02:48]}  Bb7 {[%clk 0:02:56]} 12. Bf3 {[%clk 0:02:48]}  Bxf3 {[%clk 0:02:53]} 13. Nxf3 {[%clk 0:02:47]}  c5 {[%clk 0:02:53]} 14. e4 {[%clk 0:02:46]}  Qc7 {[%clk 0:02:44]} 15. Qd2 {[%clk 0:02:44]}  cxd4 {[%clk 0:02:39]} 16. Bxd4 {[%clk 0:02:43]}  Nf6 {[%clk 0:02:39]} 17. Rfe1 {[%clk 0:02:40]}  Rfe8 {[%clk 0:02:35]} 18. Rad1 {[%clk 0:02:38]}  Qb7 {[%clk 0:02:30]} 19. Qb2 {[%clk 0:02:29]}  Nh5 {[%clk 0:02:19]} 20. Bxg7 {[%clk 0:02:27]}  Nxg7 {[%clk 0:02:19]} 21. Nd4 {[%clk 0:02:21]}  Rac8 {[%clk 0:02:13]} 22. Nb5 {[%clk 0:02:20]}  Ne6 {[%clk 0:02:08]} 23. Nc3 {[%clk 0:02:18]}  Nc5 {[%clk 0:02:03]} 24. Nd5 {[%clk 0:02:17]}  b5 {[%clk 0:01:54]} 25. cxb5 {[%clk 0:02:14]}  Qxb5 {[%clk 0:01:51]} 26. h4 {[%clk 0:02:13]}  Nd3 {[%clk 0:01:49]} 27. Qe2 {[%clk 0:02:13]}  e6 {[%clk 0:01:41]} 28. Nf6+ {[%clk 0:02:12]}  Kg7 {[%clk 0:01:40]} 29. Nxe8+ {[%clk 0:02:12]} 1-0


[Site "https://www.chess.com"]

[Event "Titled Tuesday Blitz March 15 Late 2022"]
[White "Hirneise, Jens"]
[Black "Vlassov, Nikolai"]
[WhiteFideId "24614734"]
[BlackFideId "4103360"]
[WhiteElo "2359"]
[BlackElo "2407"]
[Result "1-0"]
[Round "09"]
[TimeControl "180+1"]
[Date "2022.03.16"]
[WhiteClock "0:00:18"]
[BlackClock "0:00:01"]

1. e4 {[%clk 0:02:45]}  c5 {[%clk 0:02:58]} 2. Nf3 {[%clk 0:02:41]}  d6 {[%clk 0:02:58]} 3. Nc3 {[%clk 0:02:38]}  Nf6 {[%clk 0:02:58]} 4. e5 {[%clk 0:02:36]}  dxe5 {[%clk 0:02:58]} 5. Nxe5 {[%clk 0:02:36]}  Nbd7 {[%clk 0:02:55]} 6. Bb5 {[%clk 0:02:35]}  a6 {[%clk 0:02:55]} 7. Bxd7+ {[%clk 0:02:35]}  Nxd7 {[%clk 0:02:55]} 8. Nxd7 {[%clk 0:02:31]}  Qxd7 {[%clk 0:02:55]} 9. O-O {[%clk 0:02:31]}  b5 {[%clk 0:02:54]} 10. a4 {[%clk 0:02:28]}  b4 {[%clk 0:02:54]} 11. Ne4 {[%clk 0:02:28]}  e6 {[%clk 0:02:50]} 12. d3 {[%clk 0:02:24]}  Bb7 {[%clk 0:02:50]} 13. Be3 {[%clk 0:02:24]}  Rc8 {[%clk 0:02:49]} 14. b3 {[%clk 0:02:21]}  Be7 {[%clk 0:02:48]} 15. Qh5 {[%clk 0:02:18]}  Qd5 {[%clk 0:02:19]} 16. Qxd5 {[%clk 0:02:07]}  exd5 {[%clk 0:02:19]} 17. Ng3 {[%clk 0:02:08]}  O-O {[%clk 0:02:11]} 18. Nf5 {[%clk 0:02:06]}  Bf6 {[%clk 0:02:11]} 19. Rad1 {[%clk 0:02:01]}  Rfd8 {[%clk 0:02:04]} 20. Bf4 {[%clk 0:01:54]}  Rc6 {[%clk 0:02:00]} 21. Rfe1 {[%clk 0:01:53]}  Kf8 {[%clk 0:01:58]} 22. g4 {[%clk 0:01:50]}  Bc8 {[%clk 0:01:49]} 23. Kg2 {[%clk 0:01:44]}  h5 {[%clk 0:01:44]} 24. h3 {[%clk 0:01:43]}  Bc3 {[%clk 0:01:34]} 25. Re2 {[%clk 0:01:40]}  Bxf5 {[%clk 0:01:33]} 26. gxf5 {[%clk 0:01:40]}  Rf6 {[%clk 0:01:33]} 27. Bg5 {[%clk 0:01:38]}  Rdd6 {[%clk 0:01:27]} 28. Bxf6 {[%clk 0:01:28]}  Rxf6 {[%clk 0:01:28]} 29. f4 {[%clk 0:01:27]}  Rxf5 {[%clk 0:01:28]} 30. Rf1 {[%clk 0:01:28]}  g6 {[%clk 0:01:18]} 31. Rf3 {[%clk 0:01:23]}  Bd4 {[%clk 0:01:11]} 32. h4 {[%clk 0:01:17]}  c4 {[%clk 0:00:53]} 33. dxc4 {[%clk 0:01:10]}  dxc4 {[%clk 0:00:52]} 34. Re4 {[%clk 0:01:11]}  Bc3 {[%clk 0:00:31]} 35. Rxc4 {[%clk 0:01:11]}  Rd5 {[%clk 0:00:31]} 36. Rd3 {[%clk 0:01:08]}  Rf5 {[%clk 0:00:27]} 37. Rc6 {[%clk 0:00:53]}  a5 {[%clk 0:00:27]} 38. Rc4 {[%clk 0:00:49]}  Be1 {[%clk 0:00:27]} 39. Kh3 {[%clk 0:00:48]}  Kg7 {[%clk 0:00:27]} 40. Re3 {[%clk 0:00:47]}  Bd2 {[%clk 0:00:26]} 41. Re5 {[%clk 0:00:47]}  Rf6 {[%clk 0:00:20]} 42. f5 {[%clk 0:00:47]}  g5 {[%clk 0:00:19]} 43. hxg5 {[%clk 0:00:46]}  Bxg5 {[%clk 0:00:20]} 44. Rxa5 {[%clk 0:00:46]}  Rd6 {[%clk 0:00:18]} 45. f6+ {[%clk 0:00:41]}  Kxf6 {[%clk 0:00:15]} 46. Rcc5 {[%clk 0:00:37]}  Bc1 {[%clk 0:00:09]} 47. Rxh5 {[%clk 0:00:36]}  Rd2 {[%clk 0:00:09]} 48. Rhf5+ {[%clk 0:00:30]}  Ke6 {[%clk 0:00:10]} 49. Rac5 {[%clk 0:00:28]}  Bb2 {[%clk 0:00:09]} 50. Rf3 {[%clk 0:00:20]}  Bc3 {[%clk 0:00:05]} 51. Rcxc3 {[%clk 0:00:18]}  bxc3 {[%clk 0:00:05]} 52. Rxc3 {[%clk 0:00:19]}  f5 {[%clk 0:00:05]} 53. Kg3 {[%clk 0:00:18]}  Ke5 {[%clk 0:00:05]} 54. Kf3 {[%clk 0:00:19]}  Rh2 {[%clk 0:00:05]} 55. Rc4 {[%clk 0:00:17]}  Rh3+ {[%clk 0:00:04]} 56. Kg2 {[%clk 0:00:17]}  Rh6 {[%clk 0:00:01]} 57. a5 {[%clk 0:00:18]} 1-0


[Site "https://www.chess.com"]

[Event "Titled Tuesday Blitz March 15 Late 2022"]
[White "Hoffmann, Asa"]
[Black "Sztokbant, Bernardo Vainzoff"]
[WhiteFideId "2001470"]
[BlackFideId "2115956"]
[WhiteElo "2117"]
[BlackElo "2237"]
[Result "0-1"]
[Round "09"]
[TimeControl "180+1"]
[Date "2022.03.16"]
[WhiteClock "0:00:08"]
[BlackClock "0:00:09"]

1. d4 {[%clk 0:02:58]}  Nf6 {[%clk 0:02:59]} 2. Bg5 {[%clk 0:02:57]}  d5 {[%clk 0:02:59]} 3. Nd2 {[%clk 0:02:57]}  Bf5 {[%clk 0:02:59]} 4. e3 {[%clk 0:02:56]}  e6 {[%clk 0:02:59]} 5. c4 {[%clk 0:02:53]}  c6 {[%clk 0:02:58]} 6. Qb3 {[%clk 0:02:53]}  Qb6 {[%clk 0:02:58]} 7. c5 {[%clk 0:02:53]}  Qc7 {[%clk 0:02:56]} 8. Bf4 {[%clk 0:02:52]}  Qc8 {[%clk 0:02:56]} 9. h3 {[%clk 0:02:52]}  h6 {[%clk 0:02:56]} 10. Ngf3 {[%clk 0:02:52]}  Nbd7 {[%clk 0:02:56]} 11. Be2 {[%clk 0:02:48]}  Be7 {[%clk 0:02:56]} 12. O-O {[%clk 0:02:45]}  O-O {[%clk 0:02:57]} 13. Qc3 {[%clk 0:02:44]}  a5 {[%clk 0:02:48]} 14. b3 {[%clk 0:02:43]}  b6 {[%clk 0:02:33]} 15. cxb6 {[%clk 0:02:40]}  Qb7 {[%clk 0:02:23]} 16. Rfc1 {[%clk 0:02:39]}  Rfc8 {[%clk 0:02:21]} 17. Bc7 {[%clk 0:02:38]}  Ba3 {[%clk 0:02:16]} 18. Rd1 {[%clk 0:02:29]}  Nxb6 {[%clk 0:02:13]} 19. Be5 {[%clk 0:02:26]}  Nfd7 {[%clk 0:02:07]} 20. Bd3 {[%clk 0:02:20]}  c5 {[%clk 0:01:38]} 21. Bxf5 {[%clk 0:02:17]}  exf5 {[%clk 0:01:36]} 22. Qd3 {[%clk 0:02:13]}  g6 {[%clk 0:01:34]} 23. Bf4 {[%clk 0:02:08]}  c4 {[%clk 0:01:29]} 24. bxc4 {[%clk 0:02:04]}  Bb2 {[%clk 0:01:20]} 25. Rab1 {[%clk 0:02:01]}  dxc4 {[%clk 0:01:20]} 26. Qc2 {[%clk 0:01:44]}  c3 {[%clk 0:01:21]} 27. Bxh6 {[%clk 0:01:40]}  Nd5 {[%clk 0:01:15]} 28. Nb3 {[%clk 0:01:28]}  Nb4 {[%clk 0:01:09]} 29. Qe2 {[%clk 0:01:25]}  a4 {[%clk 0:01:01]} 30. Nc1 {[%clk 0:01:11]}  a3 {[%clk 0:00:55]} 31. Ne1 {[%clk 0:01:07]}  c2 {[%clk 0:00:54]} 32. Nxc2 {[%clk 0:01:02]}  Rxc2 {[%clk 0:00:54]} 33. Qe1 {[%clk 0:00:56]}  Rac8 {[%clk 0:00:54]} 34. Nb3 {[%clk 0:00:55]}  Nxa2 {[%clk 0:00:53]} 35. e4 {[%clk 0:00:41]}  Qxb3 {[%clk 0:00:52]} 36. exf5 {[%clk 0:00:39]}  Nc3 {[%clk 0:00:43]} 37. Qe7 {[%clk 0:00:36]}  Ne2+ {[%clk 0:00:31]} 38. Kh1 {[%clk 0:00:35]}  a2 {[%clk 0:00:09]} 39. fxg6 {[%clk 0:00:28]}  axb1=Q {[%clk 0:00:07]} 40. Rxb1 {[%clk 0:00:27]}  Qd5 {[%clk 0:00:03]} 41. gxf7+ {[%clk 0:00:22]}  Qxf7 {[%clk 0:00:04]} 42. Qg5+ {[%clk 0:00:21]}  Kh7 {[%clk 0:00:04]} 43. Qh4 {[%clk 0:00:16]}  Kg8 {[%clk 0:00:03]} 44. Be3 {[%clk 0:00:16]}  Qg6 {[%clk 0:00:02]} 45. Qg4 {[%clk 0:00:12]}  Qxg4 {[%clk 0:00:02]} 46. hxg4 {[%clk 0:00:12]}  Bxd4 {[%clk 0:00:03]} 47. Bxd4 {[%clk 0:00:11]}  Nxd4 {[%clk 0:00:04]} 48. Rb7 {[%clk 0:00:10]}  Rc1+ {[%clk 0:00:04]} 49. Kh2 {[%clk 0:00:10]}  Nf8 {[%clk 0:00:05]} 50. Kg3 {[%clk 0:00:10]}  Nde6 {[%clk 0:00:05]} 51. f4 {[%clk 0:00:10]}  R1c3+ {[%clk 0:00:06]} 52. Kh4 {[%clk 0:00:09]}  Nxf4 {[%clk 0:00:07]} 53. g3 {[%clk 0:00:09]}  N4g6+ {[%clk 0:00:08]} 54. Kg5 {[%clk 0:00:09]}  R3c5+ {[%clk 0:00:08]} 55. Kf6 {[%clk 0:00:09]}  R8c7 {[%clk 0:00:08]} 56. Rb8 {[%clk 0:00:08]}  Rf7# {[%clk 0:00:09]} 0-1


[Site "https://www.chess.com"]

[Event "Titled Tuesday Blitz March 15 Late 2022"]
[White "Jaskolka, Tomasz"]
[Black "Awoki, Daniel Teidi"]
[WhiteFideId "1170791"]
[BlackFideId "2100827"]
[WhiteElo "2073"]
[BlackElo "2023"]
[Result "1-0"]
[Round "09"]
[TimeControl "180+1"]
[Date "2022.03.16"]
[WhiteClock "0:00:06"]
[BlackClock "0:00:03"]

1. d4 {[%clk 0:02:57]}  Nf6 {[%clk 0:02:59]} 2. Bf4 {[%clk 0:02:56]}  d5 {[%clk 0:02:58]} 3. e3 {[%clk 0:02:56]}  e6 {[%clk 0:02:58]} 4. c3 {[%clk 0:02:55]}  c5 {[%clk 0:02:58]} 5. Nd2 {[%clk 0:02:55]}  Bd6 {[%clk 0:02:59]} 6. Bg3 {[%clk 0:02:56]}  Nc6 {[%clk 0:02:58]} 7. Ngf3 {[%clk 0:02:55]}  b6 {[%clk 0:02:58]} 8. Bd3 {[%clk 0:02:53]}  Bb7 {[%clk 0:02:58]} 9. Ne5 {[%clk 0:02:53]}  Ne7 {[%clk 0:02:57]} 10. Bb5+ {[%clk 0:02:45]}  Kf8 {[%clk 0:02:54]} 11. f4 {[%clk 0:02:39]}  a6 {[%clk 0:02:54]} 12. Bd3 {[%clk 0:02:38]}  Ne4 {[%clk 0:02:46]} 13. Qh5 {[%clk 0:02:15]}  Bxe5 {[%clk 0:02:27]} 14. Bxe4 {[%clk 0:02:08]}  Bf6 {[%clk 0:02:19]} 15. Bd3 {[%clk 0:02:05]}  g6 {[%clk 0:02:12]} 16. Qe2 {[%clk 0:02:04]}  Kg7 {[%clk 0:02:08]} 17. Bf2 {[%clk 0:02:00]}  h5 {[%clk 0:02:06]} 18. O-O {[%clk 0:01:58]}  cxd4 {[%clk 0:02:02]} 19. exd4 {[%clk 0:01:56]}  b5 {[%clk 0:01:57]} 20. Nf3 {[%clk 0:01:53]}  Qb6 {[%clk 0:01:39]} 21. Bh4 {[%clk 0:01:46]}  Bxh4 {[%clk 0:01:36]} 22. Nxh4 {[%clk 0:01:46]}  b4 {[%clk 0:01:36]} 23. Rae1 {[%clk 0:01:24]}  Qc6 {[%clk 0:01:04]} 24. Qe5+ {[%clk 0:01:18]}  Kg8 {[%clk 0:01:03]} 25. Qf6 {[%clk 0:00:56]}  Qd7 {[%clk 0:00:43]} 26. f5 {[%clk 0:00:24]}  Nxf5 {[%clk 0:00:40]} 27. Bxf5 {[%clk 0:00:24]}  exf5 {[%clk 0:00:40]} 28. Nxf5 {[%clk 0:00:24]}  Rh7 {[%clk 0:00:24]} 29. Ne7+ {[%clk 0:00:21]}  Kf8 {[%clk 0:00:24]} 30. Nxg6+ {[%clk 0:00:21]}  Kg8 {[%clk 0:00:24]} 31. Ne5 {[%clk 0:00:11]}  Qe6 {[%clk 0:00:18]} 32. Qg5+ {[%clk 0:00:11]}  Rg7 {[%clk 0:00:18]} 33. Qxh5 {[%clk 0:00:08]}  bxc3 {[%clk 0:00:16]} 34. bxc3 {[%clk 0:00:08]}  Rf8 {[%clk 0:00:13]} 35. Nf3 {[%clk 0:00:04]}  Qc6 {[%clk 0:00:10]} 36. Ng5 {[%clk 0:00:04]}  Qg6 {[%clk 0:00:09]} 37. Qxg6 {[%clk 0:00:05]}  Rxg6 {[%clk 0:00:07]} 38. Nf3 {[%clk 0:00:05]}  Rc8 {[%clk 0:00:06]} 39. Re3 {[%clk 0:00:05]}  Bc6 {[%clk 0:00:05]} 40. Ne5 {[%clk 0:00:06]}  Re6 {[%clk 0:00:04]} 41. Rg3+ {[%clk 0:00:05]}  Kf8 {[%clk 0:00:03]} 42. Rxf7+ {[%clk 0:00:05]}  Ke8 {[%clk 0:00:03]} 43. Rg8# {[%clk 0:00:06]} 1-0


[Site "https://www.chess.com"]

[Event "Titled Tuesday Blitz March 15 Late 2022"]
[White "Kosteniuk, Alexandra"]
[Black "Rosen, Eric"]
[WhiteFideId "4128125"]
[BlackFideId "2032562"]
[WhiteElo "2469"]
[BlackElo "2362"]
[Result "1-0"]
[Round "09"]
[TimeControl "180+1"]
[Date "2022.03.15"]
[WhiteClock "0:00:03"]
[BlackClock "0:00:02"]

1. e4 {[%clk 0:03:00]}  c5 {[%clk 0:03:00]} 2. Nf3 {[%clk 0:03:00]}  d6 {[%clk 0:03:00]} 3. Bb5+ {[%clk 0:03:00]}  Bd7 {[%clk 0:03:00]} 4. Bxd7+ {[%clk 0:02:58]}  Qxd7 {[%clk 0:03:01]} 5. d4 {[%clk 0:02:56]}  Nf6 {[%clk 0:02:54]} 6. O-O {[%clk 0:02:56]}  cxd4 {[%clk 0:02:45]} 7. Qxd4 {[%clk 0:02:54]}  Nc6 {[%clk 0:02:41]} 8. Qe3 {[%clk 0:02:55]}  g6 {[%clk 0:02:36]} 9. h3 {[%clk 0:02:55]}  Bg7 {[%clk 0:02:36]} 10. c4 {[%clk 0:02:55]}  O-O {[%clk 0:02:36]} 11. Nc3 {[%clk 0:02:55]}  Qe6 {[%clk 0:02:14]} 12. Qe2 {[%clk 0:02:55]}  Ne5 {[%clk 0:02:03]} 13. Nd2 {[%clk 0:02:41]}  Rfc8 {[%clk 0:01:56]} 14. b3 {[%clk 0:02:41]}  Nh5 {[%clk 0:01:32]} 15. Ndb1 {[%clk 0:02:15]}  b5 {[%clk 0:01:20]} 16. g4 {[%clk 0:01:53]}  bxc4 {[%clk 0:00:49]} 17. gxh5 {[%clk 0:01:30]}  Qxh3 {[%clk 0:00:48]} 18. f3 {[%clk 0:01:30]}  Nd3 {[%clk 0:00:23]} 19. Be3 {[%clk 0:01:26]}  cxb3 {[%clk 0:00:19]} 20. axb3 {[%clk 0:00:59]}  Bxc3 {[%clk 0:00:16]} 21. Nxc3 {[%clk 0:00:49]}  Rxc3 {[%clk 0:00:16]} 22. Rxa7 {[%clk 0:00:20]}  Rxa7 {[%clk 0:00:15]} 23. Bxa7 {[%clk 0:00:21]}  Ne5 {[%clk 0:00:15]} 24. Be3 {[%clk 0:00:18]}  Qg3+ {[%clk 0:00:09]} 25. Kh1 {[%clk 0:00:18]}  Qh3+ {[%clk 0:00:06]} 26. Kg1 {[%clk 0:00:18]}  Qxh5 {[%clk 0:00:06]} 27. b4 {[%clk 0:00:16]}  Rb3 {[%clk 0:00:05]} 28. Kg2 {[%clk 0:00:11]}  g5 {[%clk 0:00:04]} 29. Rh1 {[%clk 0:00:10]}  Qg6 {[%clk 0:00:05]} 30. Kf2 {[%clk 0:00:10]}  g4 {[%clk 0:00:04]} 31. Rg1 {[%clk 0:00:10]}  h5 {[%clk 0:00:04]} 32. f4 {[%clk 0:00:08]}  Nf3 {[%clk 0:00:04]} 33. f5 {[%clk 0:00:08]}  Qg7 {[%clk 0:00:04]} 34. Kg3 {[%clk 0:00:05]}  Rb2 {[%clk 0:00:04]} 35. Qc4 {[%clk 0:00:05]}  Qe5+ {[%clk 0:00:04]} 36. Bf4 {[%clk 0:00:05]}  Qf6 {[%clk 0:00:04]} 37. Qc8+ {[%clk 0:00:05]}  Kg7 {[%clk 0:00:05]} 38. Rh1 {[%clk 0:00:05]}  e5 {[%clk 0:00:03]} 39. fxe6 {[%clk 0:00:04]}  Qxe6 {[%clk 0:00:03]} 40. Qxe6 {[%clk 0:00:04]}  fxe6 {[%clk 0:00:04]} 41. Bxd6 {[%clk 0:00:04]}  Rxb4 {[%clk 0:00:04]} 42. Bxb4 {[%clk 0:00:04]}  Kg6 {[%clk 0:00:03]} 43. Kf4 {[%clk 0:00:04]}  e5+ {[%clk 0:00:02]} 44. Kg3 {[%clk 0:00:04]}  Ng5 {[%clk 0:00:02]} 45. Re1 {[%clk 0:00:03]} 1-0


[Site "https://www.chess.com"]